Cogmind - Beta 13 @@@ ROGUE MODE // 2024.04.19 @ 21:19:15 Player: Ham Result: Destroyed by Y-45 Defender with Beam Rifle Performance ------------- Evolutions (1) 500 Regions Visited (3) 600 Robots Destroyed (31) 155 Value Destroyed (797) 797 Prototype IDs (0) 0 Alien Tech Used (0) 0 Bonus (0) 0 TOTAL SCORE: 2052 Bonus ------- None Cogmind --------- Core Integrity 0/400 Matter 248/300 Energy 100/100 System Corruption 0% Temperature Cool (9) Movement Core (1350) Ox26 Location -9/Storage Parts ------- > --- POWER (1) -------- (None) > --- PROPULSION (3) --- (None) > --- UTILITY (3) ------ Huge Storage Unit Signal Interpreter > --- WEAPON (2) ------- (None) > --- INVENTORY (25) --- Ion Engine Improved Ion Engine Improved Treads Improved Treads Improved Treads Wheel Wheel Visual Processing Unit Sensor Array Improved Terrain Scanner Terrain Scan Processor Transport Network Coupler EM Pulse Gun Medium Laser Heavy Assault Rifle Heavy Assault Rifle Peak State ------------ > --- POWER ------------ Ion Engine > --- PROPULSION ------- Improved Treads Improved Treads Improved Treads > --- UTILITY ---------- Huge Storage Unit Structural Scanner Signal Interpreter > --- WEAPON ----------- Particle Gun Heavy Assault Rifle > --- INVENTORY -------- Light Ion Engine Improved Ion Engine Improved Treads Improved Treads Improved Treads Wheel Wheel Sensor Array Improved Terrain Scanner Medium Laser Heavy Assault Rifle Autogun [Rating: 16] Favorites ----------- Power Light Ion Engine Engine Light Ion Engine Propulsion Improved Treads Treads Improved Treads Wheel Wheel Utility Huge Storage Unit Device Structural Scanner Storage Huge Storage Unit Processor Signal Interpreter Weapon Heavy Assault Rifle Energy Gun Particle Gun Ballistic Gun Heavy Assault Rifle Special Weapon Welding Torch Build | -11 -10 -9 -9 ------- Run | Yrd Mat Mat Sto Slots Evolved 2 | . . 2 . Power . | . . . . Propulsion 1 | . . 1 . Utility 1 | . . 1 . Weapon . | . . . . Parts Attached 22 | 6 6 3 7 Power 3 | 1 1 . 1 Engine 3 | 1 1 . 1 Core . | . . . . Reactor . | . . . . Propulsion 7 | 2 1 1 3 Treads 3 | . . . 3 Leg . | . . . . Wheel 4 | 2 1 1 . Hover . | . . . . Flight . | . . . . Utility 4 | 1 2 1 . Device 1 | . 1 . . Storage 2 | 1 1 . . Processor 1 | . . 1 . Hackware . | . . . . Protection . | . . . . Artifact . | . . . . Weapon 8 | 2 2 1 3 Energy Gun 4 | 2 . 1 1 Energy Cannon . | . . . . Ballistic Gun 3 | . 2 . 1 Ballistic Cannon . | . . . . Launcher . | . . . . Special Weapon 1 | . . . 1 Impact Weapon . | . . . . Slashing Weapon . | . . . . Piercing Weapon . | . . . . Special Melee Weapon . | . . . . Unidentified Prototypes . | . . . . Parts Lost 11 | . 2 1 8 Power 2 | . 1 . 1 Propulsion 5 | . 1 1 3 Utility 1 | . . . 1 Weapon 3 | . . . 3 Highest Loss Streak 7 | . 2 1 7 To Critical Strikes . | . . . . Average Slot Usage (%) 91 | . 84 94 94 Engine 11 | . 13 11 10 Treads 16 | . . . 25 Wheel 11 | . 27 27 3 Device 7 | . . 11 10 Storage 11 | . 14 11 11 Processor 7 | . . 11 11 Energy Gun 8 | . 6 11 9 Ballistic Gun 13 | . 21 11 10 Naked Turns . | . . . . Heaviest Build 92 | 12 92 92 92 Greatest Support 69 | 26 26 30 69 Greatest Overweight (x) 29 | . 4 4 29 Average Overweight (x) 1 | . . 3 2 Largest Inventory Capacity 25 | 8 25 25 25 Average Capacity 20 | 7 12 25 25 Most Carried 16 | 4 8 6 16 Average Carried 9 | 2 6 4 12 Final Capacity 25 | 8 25 25 25 Final Carried 16 | 4 6 6 16 Class Distribution -------------------- 85% | Mutant 14% | Scavenger-Mutant Dominant Class ---------------- Mutant | -10/Materials Scavenger-Mutant | -9/Materials Mutant | -9/Storage Resources | -11 -10 -9 -9 ----------- Run | Yrd Mat Mat Sto Matter Collected 701 | 260 144 18 279 Remotely . | . . . . Salvage Created 1141 | 129 348 73 591 Parts 74 | 5 24 8 37 Haulers Intercepted . | . . . . Recyclers Shooed 1 | 1 . . . Parts Field Recycled . | . . . . Retrieved Matter . | . . . . Parts Self-Destructed . | . . . . Prevented . | . . . . Kills | -11 -10 -9 -9 ------- Run | Yrd Mat Mat Sto Combat Hostiles Destroyed 22 | . 10 1 11 Guns 21 | . 10 1 10 AOE 1 | . . . 1 Classes Destroyed 8 | 2 3 2 1 Builder 1 | . . . 1 Tunneler 2 | 2 . . . Recycler 2 | 1 . . 1 Operator 1 | . . 1 . Watcher 3 | . 1 . 2 Swarmer 7 | . 3 . 4 Grunt 9 | . 7 . 2 Sentry 6 | . . 1 5 Best Kill Streak 8 | 2 8 1 4 Combat Bots Only 7 | . 7 1 4 Max Kills in Single Turn 2 | 1 2 1 1 Gunslinging 1 | . 1 . . Exploded 1 | . . . 1 Melee . | . . . . Uniques/NPCs Destroyed . | . . . . Combat | -11 -10 -9 -9 -------- Run | Yrd Mat Mat Sto Hostile Shots Fired 198 | . 56 4 138 Missed 55 | . 13 . 42 Damage Taken 1873 | . 457 64 1352 Core 484 | . 70 . 414 Absorbed by Shields . | . . . . Core Remaining (%) 86 | 100 72 . . Volleys Fired 109 | 10 27 4 68 Largest 2 | 2 2 2 2 Hottest 100 | 100 46 88 88 Shots Fired 190 | 20 54 5 111 Gun 179 | 20 54 5 100 Cannon . | . . . . Launcher . | . . . . Special 11 | . . . 11 Kinetic 115 | . 54 4 57 Thermal 75 | 20 . 1 54 Explosive . | . . . . Electromagnetic . | . . . . Robot Hit Streak 8 | 4 6 2 8 Robot Miss Streak 3 | 2 2 1 3 Penetration Max . | . . . . Secondary Targets 2 | . 2 . . Max Gunslinging Chain 1 | . 1 . . Shots Hit Robots 113 | 11 33 3 66 Core Hits 50 | 4 16 3 27 Critical Kills . | . . . . Critical Parts Destroyed 1 | . . . 1 Critical Strikes 3 | 2 . . 1 Burn 2 | 2 . . . Destroy 1 | . . . 1 Melee Attacks . | . . . . Impact . | . . . . Slashing . | . . . . Piercing . | . . . . Sneak Attacks . | . . . . Combat Hostiles . | . . . . Follow-up Attacks . | . . . . Damage Inflicted 1716 | 135 529 44 1008 Guns 1658 | 135 529 44 950 Cannons . | . . . . Explosions 39 | . . . 39 Melee . | . . . . Ramming . | . . . . Kinetic 1113 | . 529 44 540 Thermal 564 | 135 . . 429 Explosive 39 | . . . 39 Electromagnetic . | . . . . Impact . | . . . . Slashing . | . . . . Piercing . | . . . . Highest Corruption . | . . . . Average Corruption . | . . . . Corruption Purged . | . . . . Corruption Blocked . | . . . . Overload Shots . | . . . . Overflow Damage . | . . . . Projectiles . | . . . . Explosions . | . . . . Melee . | . . . . Knockbacks . | . . . . Impact . | . . . . Kinetic . | . . . . Secondary . | . . . . Self-Inflicted Damage 37 | . . . 37 Shots 1 | . . . 1 Rammed . | . . . . Targets Rammed . | . . . . Kicked . | . . . . Crushed . | . . . . Highest Temperature 445 | 195 17 18 445 Average Temperature 95 | 68 3 12 111 Received Heat Transfer 732 | . 162 18 552 Effects 4 | . . . 4 Shutdowns 1 | . . . 1 Interference 3 | . . . 3 Siege Activations . | . . . . Robots Corrupted . | . . . . Combat Hostiles . | . . . . Parts Fried . | . . . . Impact Corruptions . | . . . . Robots Melted . | . . . . Combat Hostiles . | . . . . Parts Melted 4 | 2 . . 2 Heat Transferred 1729 | 555 . . 1174 Parts Sabotaged . | . . . . Parts Stolen . | . . . . Parts Stripped . | . . . . Power Chain Reactions . | . . . . Alert | -11 -10 -9 -9 ------- Run | Yrd Mat Mat Sto Peak Influence 320 | 15 320 70 205 Initial 50 | . 9 50 12 Average 95 | 7 115 38 101 Maximum Alert Level 1 | . 1 . 1 Low Security (%) 89 | 100 61 100 99 Level 1 10 | . 38 . . Level 2 . | . . . . Level 3 . | . . . . Level 4 . | . . . . Level 5 . | . . . . High Security . | . . . . Max Security . | . . . . Squads Dispatched 3 | . 2 . 1 Investigation . | . . . . Extermination . | . . . . Reinforcement 3 | . 2 . 1 Assault . | . . . . Garrison . | . . . . Intercept . | . . . . Searches Triggered . | . . . . Construction Impeded . | . . . . Haulers Reinforced . | . . . . Active Scanning Responses . | . . . . Cargo Convoy Interrupts . | . . . . Stealth | -11 -10 -9 -9 --------- Run | Yrd Mat Mat Sto Distress Signals 4 | . 3 . 1 Communications Jammed . | . . . . Distress Signals . | . . . . Times Spotted 34 | . 14 2 18 Peak Tracking Total 7 | . 7 1 4 Tactical Retreats 2 | . . . 2 Traps | -11 -10 -9 -9 ------- Run | Yrd Mat Mat Sto Traps Triggered 1 | . 1 . . Indirectly . | . . . . Trap Hack Attempts . | . . . . Triggered . | . . . . Disarmed . | . . . . Reprogrammed . | . . . . Reused . | . . . . Traps Extracted . | . . . . Installed . | . . . . Triggered . | . . . . Machines | -11 -10 -9 -9 ---------- Run | Yrd Mat Mat Sto Machines Disabled 3 | . 1 . 2 Max in Single Turn 2 | . 1 . 2 Machines Repaired . | . . . . Machines Dismantled . | . . . . Machines Sabotaged . | . . . . Overloaded Fab Kills . | . . . . Hacking | -11 -10 -9 -9 --------- Run | Yrd Mat Mat Sto Machines Accessed 11 | . 3 2 6 Terminals 10 | . 3 2 5 Fabricators . | . . . . Repair Stations . | . . . . Recycling Units 1 | . . . 1 Scanalyzers . | . . . . Garrison Access . | . . . . Total Hacks 19 | . 3 4 12 Successful 9 | . 2 3 4 Failed 10 | . 1 1 8 Catastrophic 2 | . 1 . 1 Database Lockouts . | . . . . Manual 1 | . . . 1 Terminals 15 | . 3 4 8 Fabricators . | . . . . Repair Stations . | . . . . Recycling Units 4 | . . . 4 Scanalyzers . | . . . . Garrison Access . | . . . . Terminal Hacks 8 | . 2 3 3 Record 1 | . 1 . . Robot Schematic 2 | . . . 2 Alert Level 1 | . . 1 . Unreport Threat 1 | . . 1 . Maintenance Status 2 | . 1 1 . Zone Layout 1 | . . . 1 Fabricator Hacks . | . . . . Repair Station Hacks . | . . . . Recycling Unit Hacks 1 | . . . 1 Retrieve Components 1 | . . . 1 Scanalyzer . | . . . . Garrison Access Hacks . | . . . . Unauthorized Hacks . | . . . . Terminals . | . . . . Fabricators . | . . . . Repair Stations . | . . . . Recycling Units . | . . . . Scanalyzers . | . . . . Garrison Access . | . . . . Data Cores Recovered 1 | . . 1 . Used . | . . . . Hacking Detections 11 | . 3 2 6 Full Trace Events 1 | . . . 1 Feedback Events . | . . . . Feedback Blocked . | . . . . Robot Schematics Acquired 2 | . . . 2 Robots Built . | . . . . Authchips . | . . . . Time . | . . . . Total Robot Build Rating . | . . . . Part Schematics Acquired . | . . . . Parts Built . | . . . . Authchips . | . . . . Time . | . . . . Total Part Build Rating . | . . . . Parts Repaired . | . . . . Time . | . . . . Parts Recycled . | . . . . Recycled Matter . | . . . . Retrieved Matter . | . . . . Retrieved Components 2 | . . . 2 Parts Scanalyzed . | . . . . Part Schematics Acquired . | . . . . Parts Damaged . | . . . . Bothacking | -11 -10 -9 -9 ------------ Run | Yrd Mat Mat Sto Used RIF Installer . | . . . . Robots Hacked . | . . . . Non-combat . | . . . . Combat . | . . . . Robot Hacks Applied . | . . . . Relay Couplers Released . | . . . . Fabnet Peak Effective % . | . . . . Robots Rewired . | . . . . Allies Hacked . | . . . . Hacks Repelled . | . . . . Allies | -11 -10 -9 -9 -------- Run | Yrd Mat Mat Sto Total Allies . | . . . . Largest Group . | . . . . Highest-Rated Group . | . . . . Highest-Rated Ally . | . . . . Total Orders . | . . . . Ally Attacks . | . . . . Total Damage . | . . . . Kills . | . . . . Allies Corrupted . | . . . . Allies Melted . | . . . . Intel | -11 -10 -9 -9 ------- Run | Yrd Mat Mat Sto Robot Analysis Total . | . . . . Derelict Logs Recovered . | . . . . Drone Launches . | . . . . Drone Recoveries . | . . . . Exploration | -11 -10 -9 -9 ------------- Run | Yrd Mat Mat Sto Turns Passed 1480 | 115 405 68 892 Spaces Moved 750 | 82 311 41 316 Core 13 | 10 . . 3 Treads 221 | . . . 221 Legs . | . . . . Wheels 516 | 72 311 41 92 Hover . | . . . . Flight . | . . . . Fastest Speed 50 | 50 80 125 140 Average Speed 151 | 85 99 133 222 Slowest Speed 1500 | 90 140 140 1500 Overloaded Moves . | . . . . Propulsion Burnouts . | . . . . Robots Hopped . | . . . . Cave-ins Triggered . | . . . . Exploration Rate (%) 30 | 4 54 7 56 Regions Visited 3 Branch Regions 1 Pre-discovered Areas . | . . . . Known Exits Taken 1 | . . 1 . Unknown Exits Taken 2 | 1 1 . . Scrap Searched . | . . . . Spaces Dug . | . . . . Terrain Destroyed 21 | . . . 21 Melee . | . . . . Projectile . | . . . . AOE 21 | . . . 21 Terrain Rammed . | . . . . Walls Destroyed . | . . . . Machines Disabled . | . . . . Actions | -11 -10 -9 -9 --------- Run | Yrd Mat Mat Sto Total 911 | 107 352 49 403 Wait . | . . . . Move 747 | 81 310 40 316 Hop . | . . . . Pick Up 31 | 10 7 2 12 Fast Attach . | . . . . Attach 13 | 6 3 2 2 Detach . | . . . . Swap 9 | . 3 1 5 Drop 2 | . 2 . . Fire 109 | 10 27 4 68 Melee . | . . . . Ram . | . . . . Kick . | . . . . Crush . | . . . . Escape Stasis . | . . . . Rewire . | . . . . Trap . | . . . . Miscellaneous . | . . . . Route ------- -11/Scrapyard -10/Materials (discovered 2 exits: *Mat / [*Min]) -9/Materials -9/Storage (discovered 1 exit: *Mat) History --------- Turn | Location | Event 16 | -11/Scrapyard | Discovered new exit (range 15) 116 | -11/Scrapyard | Entered Materials 309 | -10/Materials | Build established: Mutant 373 | -10/Materials | Discovered new exit (range 12) 383 | -10/Materials | Destroyed 7 combat bots 509 | -10/Materials | Discovered new exit (range 7) 521 | -10/Materials | Entered another Materials area 521 | -9/Materials | Evolved 2 slots: Propulsion x1, Utility x1 548 | -9/Materials | Discovered new exit (range 15) 586 | -9/Materials | Identified exit to Storage 589 | -9/Materials | Entered Storage 1143 | -9/Storage | Discovered new exit (range 13) 1172 | -9/Storage | Identified exit to Materials 1455 | -9/Storage | Core integrity fell below 50% 1473 | -9/Storage | Core integrity fell below 20% 1481 | -9/Storage | Destroyed by Y-45 Defender with Beam Rifle Last Messages --------------- 01436_ K-01 Serf collects debris. 01438_ Power failure, Lgt. Ion Engine shutdown. 01439_ K-01 Serf collects debris. 01440_ Overheating: System interference. 01440_ Autogun temporarily disabled. 01440_ Particle Gun temporarily disabled. 01440_ Structural Scanner temporarily disabled. 01442_ Imp. Treads destroyed. 01443_ K-01 Serf collects debris. 01448_ U-05 Engineer builds a Door. 01450_ Autogun destroyed. 01450_ Lgt. Ion Engine destroyed. 01452_ Particle Gun destroyed. 01460_ K-01 Serf collects debris. 01462_ K-01 Serf destroyed. 01462_ K-01 Serf collects debris. 01466_ Structural Scanner destroyed. 01466_ Critical hit (Burn: +37). 01467_ K-01 Serf collects debris. 01475_ Critical hit (Burn: +37). Map ----- +----------------------------------------------------+ | # """" #### + = ## ## | | # "" " + # # # ! | | + """ " #### ########### ## """%+= | | # " """ #### ########### # """ # | | # " "" ???## ##???????## ## """ # | | # """" ???## ##???????############ ## | | # ???## ##??????? # ## | | #########???## ##???????""" ??"" ####/####### | | "###### #???## ##????????"" ???" #### | | T??????????? # ##?????????" "??? + | | ???????????? / ##?????????? ""??? ######## | | ???????????? # ##???? ######## | | ???????????? # ##????#########+####### # | | ???????????? + ##???? # =%= *[ | | ???????????? # # ???? #[ [ = | | ???????????? # #"???? #% #####+## #### ##### | | ???????????? # #"???? #!u## #+#####+####### | | ??????????????????????? +[g## # + | | ??????????????????????? #%!## = =# # | | ??????????????????????? #Y ## # # | | ??????????????????????? #=k## # + | | ????????????? # ## #%*## # !* ## | | ????????????? # ######### ## #% | [ ![ ## | | ????????????? + % ## ################ | | ????????????? # + #### ### | | ????????????? # #########@### #### # | | ????????????? # #######T ## #### # | | ??????????????????????###"### #### """ """ + | | ???????????????????????????########### """ """ # | | ???????????????????????????########### """ """ # | | ???????????????????????????????????## ## | | ???????????????????????????????????### ## | | ???????????????????????????????????#######"T"#### | | ????????????????????????????????????######"""#### | | ????????????????????????????????????????######### | | ????????????????????????????????????????######### | | ???????????????????????????????????????????????## | | ???????????????????????????????????????????????## | | ???????????????????????????????????????????????## | | ???????????????????????????????????????????????## | | ???????????????????????????????????????????????### | | ???????????????????????????????????????????????### | | ?????????????????????????????????????????????????? | | ?????????????????????????????????????????????????? | | ?????????????????????????????????????????????????? | | ?????????????????????????????????????????????????? | | ?????????????????????????????????????????????????? | | ?????????????????????????????????????????????????? | | ?????????????????????????????????????????????????? | | ?????????????????????????????????????????????????? | +----------------------------------------------------+ Best States ------------- Heat Dissipation 28 Energy Generation 10 Energy Capacity 250 Matter Stores 300 Matter Capacity 300 Sight Range 16 Terrain Scan Density 10 Evasion (%) 50 Recoil Reduction 3 Item Schematics ----------------- None Robot Schematics ------------------ G-34 Mercenary | -9/Storage | Hacked L-31 Rogue | -9/Storage | Hacked Fabricated ------------ Nothing Alien Tech Used ----------------- None Achievements -------------- None Challenges ------------ None Game ------ Seed ArchitectCombatMembrane Manual? 0 Play Time 00:18:52 Cumulative 7.2 hours Start 2024.04.19 @ 21:01:14 End 2024.04.19 @ 21:19:15 Sessions 1 Manual Loads 0 Difficulty Rogue Special Mode None Game No. 14 Rogue 14 Adventurer 0 Explorer 0 Win Type - Total 0 Types 0/0/0/0/0/0/0/0/0 Lore% 9 Gallery% 11 Achievement% 12 Wizard Run 0 Options --------- Layout 1 ASCII 0 Keyboard 0 Movement Mouse Keybinds 0 Fullscreen 1 Font 16/SmallcapsGlow Map View 55x38 Zoom Use 0% Tactical HUD 1 Map Filters NONE Filters NONE Steam 1 RUN: 748c9ad4-11c1-4494-8891-5f1eaa4fbf16